{"text_format":"1","workbook":"xlsx","n_sheets":2,"sheets":["Projektierung Aufstellung","Daten für Excel Befüllung"],"not_rendered":{"charts":0,"images":0,"macros":1,"external_links":0,"defined_names":1,"comments":2,"pivot_tables":0},"unopened":[],"bounds":{"document_bytes":16777216,"sheet_cells":100000,"rows_first":2000,"rows_last":500,"rows_between":2000,"halvings":0,"cell_chars":16384,"cell_head_chars":4096},"cells_cut":0,"cells_raw":0,"read":"whole","date_system":"1900"}

{"sheet":"Projektierung Aufstellung","index":0,"n_rows":85,"n_cols":50,"rows_kept":85,"cut":false,"hidden":false,"merged":[[1,5,1,14],[9,1,9,2],[11,16,11,20],[10,16,10,20],[10,21,10,26],[11,21,11,26],[12,21,12,26],[14,1,14,3],[15,1,15,3],[4,15,4,23],[13,16,13,20],[12,16,12,20],[14,21,14,26],[15,21,15,26],[15,16,15,20],[14,16,14,20],[16,1,16,3],[2,5,2,14],[3,5,3,14],[5,5,5,14],[4,5,4,14],[8,5,8,14],[7,5,7,14],[6,5,6,14],[14,5,14,9],[12,5,12,9],[11,5,11,9],[16,5,16,9],[17,5,17,9],[13,5,13,9],[1,1,1,3],[2,2,2,3],[3,2,3,3],[4,2,4,3],[5,2,5,3],[6,2,6,3],[8,1,8,3],[7,2,7,3],[10,1,10,3],[11,1,11,3],[12,1,12,3],[13,1,13,3],[15,5,15,9],[9,5,9,40],[1,24,1,27],[2,24,2,27],[3,24,3,27],[5,24,5,27],[4,24,4,27],[1,15,1,23],[2,15,2,23],[3,15,3,23],[2,28,2,40],[3,28,3,40],[7,28,7,40],[5,28,5,40],[6,28,6,40],[6,15,6,23],[8,15,8,23],[5,15,5,23],[8,28,8,40],[11,29,11,40],[12,29,12,40],[13,29,13,40],[18,10,18,15],[13,10,13,15],[12,10,12,15],[11,10,11,15],[15,10,15,15],[4,28,4,40],[16,29,16,40],[13,21,13,26],[14,10,14,15],[16,10,16,15],[17,10,17,15],[15,29,15,40],[14,29,14,40],[16,16,16,20],[16,21,16,26],[17,21,17,26],[18,21,18,26],[18,16,18,20],[17,16,17,20],[21,29,21,40],[20,29,20,40],[10,10,10,15],[0,5,0,40],[0,0,0,3],[9,0,27,0],[1,0,8,0],[17,1,27,2],[1,28,1,40],[7,24,7,27],[6,24,6,27],[8,24,8,27],[7,15,7,23],[18,5,18,9],[10,5,10,9],[27,3,27,18],[27,30,27,38],[23,29,23,40],[22,29,22,40],[27,20,27,29],[17,29,17,40],[18,29,18,40],[19,29,19,40],[10,28,10,40]]}
[]
[null,"K.Nr.",null,null,null,"Funktion",null,null,null,null,null,null,null,null,null,"Ausführende Firmen",null,null,null,null,null,null,null,null,"Tel.",null,null,null,"E-Mail Adressen"]
[null,"Firma",null,null,null,"Bauherr:"]
[null,"Betreiber",null,null,null,"Archithekt:"]
[null,"Besitzer",null,null,null,"Bauleiter:"]
[null,"Straße",null,null,null,"EDV-Admin:"]
[null,"Ort",null,null,null,"Elektriker:"]
[null,"PLZ",null,null,null,"Tischler:"]
[null,null,null,null,null,"Schlosser:"]
[null,"Aufgenommen am  __ . __ . ____"]
[null,null,null,null,null,"SCH Ansprechpartner",null,null,null,null,null,null,null,null,null,null,"Tel.",null,null,null,null,"E-Mail",null,null,null,null,null,null,"Benötigtes Verwaltung und Programmier Euipment:"]
[null,null,null,null,null,"Team Zentral",null,null,null,null,"Oskar Nimmervoll",null,null,null,null,null,"0732/6599-3060",null,null,null,null,"oskar.nimmervoll@schachermayer.at",null,null,null,null,null,null,"Anzahl","Salto Artikel Bezeichnungen:"]
[null,null,null,null,null,"Team Zentral",null,null,null,null,"Thomas Frühwirth",null,null,null,null,null,"0732/6599-3060",null,null,null,null,"thomas.fruehwirth@schachermayer.at",null,null,null,null,null,null,null,"Kodiergerät Mifare EC904B0EU (USB+LAN+NFC)"]
[null,"Wunsch Montage Termin:",null,null,null,"Team Zentral",null,null,null,null,"Sandro Hain",null,null,null,null,null,"0732/6599-3060",null,null,null,null,"sandro.hain@schachermayer.at",null,null,null,null,null,null,null,"Tragbares Programmiergerät PPD800 (NFC+USB Schnitstelle)"]
[null,"Fertigstellung:",null,null,null,"Team Ost",null,null,null,null,"Manfred Herrmann",null,null,null,null,null,"07326599-6422\t  ",null,null,null,null,"manfred.Herrmann@schachermayer.at",null,null,null,null,null,null,null,"Gästekarte Mifare Ultralight 85,60 x 53,98 x 0,80 mm, Kunststoff weiß "]
[null,null,null,null,null,"Team Süd",null,null,null,null,"Werner Gritsch",null,null,null,null,null,"0732/6599-3060",null,null,null,null,"werner.gritsch@schachermayer.at",null,null,null,null,null,null,null,"Gästekarte Mifare Ultralight 85,60 x 53,98 x 0,80 mm, Kunststoff BEDRUCKT"]
[null,null,null,null,null,"Team West",null,null,null,null,"Ewald Schadl ",null,null,null,null,null,"0664/78788704  \t               ",null,null,null,null,"ewald.Schadl@schachermayer.at",null,null,null,null,null,null,null,"Backoffice Schlüsselanhänger Mifare DESFire4KB, Kunststoff gelb mit SCH-Logo"]
[null,"SVERWEIS",null,null,null,"Team West",null,null,null,null,"Alexander Kaindl",null,null,null,null,null,"0664/88639524",null,null,null,null,"alexander.kaindl@schachermayer.at",null,null,null,null,null,null,null,"Zutrittsmanagementsoftware SPABasic"]
[null,null,null,null,null,"Auendienst Verkäufer",null,null,null,null,null,null,null,null,null,null,null,null,null,null,null,null,null,null,null,null,null,null,null,"Zusatz Software Module"]
[null,null,null,null,null,null,null,null,null,null,null,null,null,null,null,null,null,null,null,null,null,null,null,null,null,null,null,null,null,"Montageschlüssel für abnehmbaren Geo-Lesekopf SP 220764"]
[null,null,null,null,null,null,null,null,null,null,null,null,null,null,null,null,null,null,null,null,null,null,null,null,null,null,null,null,null,"Montageschlüssel für abnehmbaren Neo-Lesekopf SP 225542"]
[null,null,null,null,null,null,null,null,null,null,null,null,null,null,null,null,null,null,null,null,null,null,null,null,null,null,null,null,null,"Neoxx Montageschlüssel SP226010"]
[null,null,null,null,null,null,null,null,null,null,null,null,null,null,null,null,null,null,null,null,null,null,null,null,null,null,null,null,null,"Montageschlüssel XS4 Mini, Stahl verzinkt"]
[]
[]
[]
[]
[null,null,null,"Benötigte Salto Komponeten Ausführung",null,null,null,null,null,null,null,null,null,null,null,null,null,null,null,null,"Angaben bei Schlosstausch",null,null,null,null,null,null,null,null,null,"Angeben für E-Zylinder"]
["Stück","Etage (Stockwerke)","Raumbezeichnung ","Salto Bauform:\n(z.b.Beschlag)","Produkt\nAusführung","Drückerform","PZ Entfenrung","Modellvarianten","Protokollierende \nNotöffnung","Bitte nicht Stören ","Tür Reed Kontakt","Farbe Beschlag","Farbe Leser Abdeckung ","Türstärke in mm","Unterlagsplatten","Unterlagsplatten Abmessungen","Dückernuss","Wetterschutz IP","Modellvariante\nGlastüren","Ausführung  für Codetastatur","Entfernung","Dornmass","Nuss in mm","Brandschutz","Fluchttür z. B. EN179 oder EN1125 ","Schlosstype","Schloss Richtung","Benötigte Schloss Ausführung","Schloss Stulp Ausführung","Schloss Ausgleichshülse","Zylindermodell","Lesekopf Verlängerung","Oberflächen Farbe","Spernasen ausführung","Innenknauf Form","Panik  Ausführung","Digitalzylinder Zusatzoption","Zylinder-länge\nAußen A ","Zylinder-länge\nInnen B","Energiesparsschalter","Notiz\nwichtige Information,",null,"Artikel Zusammenfassung Beschläge \nWandleser Steuerungen",null,null,null,"Artikel Zusammenfassung Schlösser",null,null,"Artikel Zusammenfassung E-Zylinder"]
[null,null,null,"ONE  Beschlag \"EM75\"","EM75","U",0,0,null,null,null,"IM","B",6,null,null,9,null,null,null,null,null,null,null,null,null,null,null,null,null,null,null,null,null,null,null,null,null,null,null,null,null,{"$f":"_xlfn.CONCAT(E30,H30,F30,IF(G30=\"\",\"\",TEXT(G30,\"00\")),L30,M30,N30,Q30,R30,)","v":"EM750U00IMB69"},null,null,null,{"$f":"_xlfn.CONCAT(AE30,AF30,AL30,AI30,AM30,AG30,AH30,AJ30,AK30,)","v":""},null,null,{"$f":"_xlfn.CONCAT(AE30,AF30,AL30,AI30,AM30,AG30,AH30,AJ30,AK30,)","v":""}]
[null,null,null,"MINI Beschlag Standard  \"EM150\"","EM150","U",null,"R ",null,null,null,"IM","B",3,null,null,8,null,null,null,null,null,null,null,null,null,null,null,null,null,null,null,null,null,null,null,null,null,null,null,null,null,{"$f":"_xlfn.CONCAT(E31,H31,F31,IF(G31=\"\",\"\",TEXT(G31,\"00\")),L31,M31,N31,Q31,R31,)","v":"EM150R UIMB38"},null,null,null,null,null,null,{"$f":"_xlfn.CONCAT(AE31,AF31,AL31,AI31,AM31,AG31,AH31,AJ31,AK31,)","v":""}]
[null,null,null,"MINI Beschlag Metall Optik \"EM350\"","EM350","U",null,"R ",null,null,null,"IM","B",3,null,null,8,null,null,null,null,null,null,null,null,null,null,null,null,null,null,null,null,null,null,null,null,null,null,null,null,null,{"$f":"_xlfn.CONCAT(E32,H32,F32,IF(G32=\"\",\"\",TEXT(G32,\"00\")),L32,M32,N32,Q32,R32,)","v":"EM350R UIMB38"},null,null,null,null,null,null,{"$f":"_xlfn.CONCAT(AE32,AF32,AL32,AI32,AM32,AG32,AH32,AJ32,AK32,)","v":""}]
[null,null,null,"ONE DIN Beschlag \"SH\" \"RO\" EM750O","EM750","U",null,"RO",null,null,null,"IM","B",4,null,null,8,null,null,null,null,null,null,null,null,null,null,null,null,null,null,null,null,null,null,null,null,null,null,null,null,null,{"$f":"_xlfn.CONCAT(E33,F33,H33,IF(G33=\"\",\"\",TEXT(G33,\"00\")),L33,M33,N33,Q33,R33,)","v":"EM750UROIMB48"},null,null,null,null,null,null,{"$f":"_xlfn.CONCAT(AE33,AF33,AL33,AI33,AM33,AG33,AH33,AJ33,AK33,)","v":""}]
[null,null,null,"Original+ DIN Beschlag \"SH\" \"RO\"  EM450","EM450","U",null,"RO",null,null,null,"IM",null,4,null,null,8,null,null,null,null,null,null,null,null,null,null,null,null,null,null,null,null,null,null,null,null,null,null,null,null,null,{"$f":"_xlfn.CONCAT(E34,F34,H34,IF(G34=\"\",\"\",TEXT(G34,\"00\")),L34,M34,N34,Q34,R34,)","v":"EM450UROIM48"},null,null,null,null,null,null,{"$f":"_xlfn.CONCAT(AE34,AF34,AL34,AI34,AM34,AG34,AH34,AJ34,AK34,)","v":""}]
[null,null,null,"ONE Halbbeschlag \"EM750H / D\"","EM75","U",0,0,null,null,null,"IM","B","D",null,null,9,5,null,null,null,null,null,null,null,null,null,null,null,null,null,null,null,null,null,null,null,null,null,null,null,null,{"$f":"_xlfn.CONCAT(E35,H35,F35,IF(G35=\"\",\"\",TEXT(G35,\"00\")),L35,M35,N35,Q35,R35,)","v":"EM750U00IMBD95"},null,null,null,null,null,null,{"$f":"_xlfn.CONCAT(AE35,AF35,AL35,AI35,AM35,AG35,AH35,AJ35,AK35,)","v":""}]
[null,null,null,"ONE Komplementärbeschlag Schmal \"E07\"","E07","U",0,0,null,null,null,"IM",0,6,null,null,9,null,null,null,null,null,null,null,null,null,null,null,null,null,null,null,null,null,null,null,null,null,null,null,null,null,{"$f":"_xlfn.CONCAT(E36,IF(H36=\"\",\"\",TEXT(H36,\"00\")),F36,IF(G36=\"\",\"\",TEXT(G36,\"00\")),L36,M36,N36,Q36,R36,)","v":"E0700U00IM069"},null,null,null,null,null,null,{"$f":"_xlfn.CONCAT(AE36,AF36,AL36,AI36,AM36,AG36,AH36,AJ36,AK36,)","v":""}]
[null,null,null,"ONE Komplementärbeschlag Schmal \"E07\"","E07","U",88,"01",null,null,null,"IM",0,6,null,null,9,null,null,null,null,null,null,null,null,null,null,null,null,null,null,null,null,null,null,null,null,null,null,null,null,null,{"$f":"_xlfn.CONCAT(E37,H37,F37,IF(G37=\"\",\"\",TEXT(G37,\"00\")),L37,M37,N37,Q37,R37,)","v":"E0701U88IM069"},null,null,null,null,null,null,{"$f":"_xlfn.CONCAT(AE37,AF37,AL37,AI37,AM37,AG37,AH37,AJ37,AK37,)","v":""}]
[null,null,null,"Original+ Halbbeschlag  \"EM450H\"","EM45","U",0,0,null,null,null,"IM","B","H",null,null,9,5,null,null,null,null,null,null,null,null,null,null,null,null,null,null,null,null,null,null,null,null,null,null,null,null,{"$f":"_xlfn.CONCAT(E38,H38,F38,IF(G38=\"\",\"\",TEXT(G38,\"00\")),L38,M38,N38,Q38,R38,)","v":"EM450U00IMBH95"},null,null,null,null,null,null,{"$f":"_xlfn.CONCAT(AE38,AF38,AL38,AI38,AM38,AG38,AH38,AJ38,AK38,)","v":""}]
[null,null,null,"Original Breitschildbeschlag mit Keypad  \"E96\"","E965","U",92,2,null,null,null,"IM",null,6,null,null,8,null,null,"K",null,null,null,null,null,null,null,null,null,null,null,null,null,null,null,null,null,null,null,null,null,null,{"$f":"_xlfn.CONCAT(E39,H39,F39,IF(G39=\"\",\"\",TEXT(G39,\"00\")),L39,M39,N39,Q39,R39,T39,)","v":"E9652U92IM68K"},null,null,null,null,null,null,{"$f":"_xlfn.CONCAT(AE39,AF39,AL39,AI39,AM39,AG39,AH39,AJ39,AK39,)","v":""}]
[null,null,null,"Original Dopp. Beschlag 8mm \"E9CD\"","E9CD","U",92,2,null,null,null,"IM",null,6,null,null,null,null,null,null,null,null,null,null,null,null,null,null,null,null,null,null,null,null,null,null,null,null,null,null,null,null,{"$f":"_xlfn.CONCAT(E40,H40,F40,IF(G40=\"\",\"\",TEXT(G40,\"00\")),L40,M40,N40,Q40,R40,)","v":"E9CD2U92IM6"},null,null,null,null,null,null,{"$f":"_xlfn.CONCAT(AE40,AF40,AL40,AI40,AM40,AG40,AH40,AJ40,AK40,)","v":""}]
[null,null,null,"Original+ Glastürbeschlag  \"EM65#GD\"","EM65","U","GD",0,null,null,null,"IM","B",null,null,null,null,null,"ORR",null,null,null,null,null,null,null,null,null,null,null,null,null,null,null,null,null,null,null,null,null,null,null,{"$f":"_xlfn.CONCAT(E41,H41,F41,IF(G41=\"\",\"\",TEXT(G41,\"00\")),L41,M41,N41,Q41,R41,S41,)","v":"EM650UGDIMBORR"},null,null,null,null,null,null,{"$f":"_xlfn.CONCAT(AE41,AF41,AL41,AI41,AM41,AG41,AH41,AJ41,AK41,)","v":""}]
[null,null,null,"Original+ Breitschildbeschlag   EM65","EB65","U",0,0,null,null,null,"IM","B",4,null,null,8,null,null,null,null,null,null,null,null,null,null,null,null,null,null,null,null,null,null,null,null,null,null,null,null,null,{"$f":"_xlfn.CONCAT(E42,H42,F42,IF(G42=\"\",\"\",TEXT(G42,\"00\")),L42,M42,N42,Q42,R42,S42,T42,)","v":"EB650U00IMB48"},null,null,null,null,null,null,{"$f":"_xlfn.CONCAT(AE42,AF42,AL42,AI42,AM42,AG42,AH42,AJ42,AK42,)","v":""}]
[null,null,null,null,null,null,null,null,null,null,null,null,null,null,null,null,null,null,null,null,null,null,null,null,null,null,null,null,null,null,null,null,null,null,null,null,null,null,null,null,null,null,{"$f":"_xlfn.CONCAT(E43,H43,F43,IF(G43=\"\",\"\",TEXT(G43,\"00\")),L43,M43,N43,Q43,R43,S43,T43,)","v":""},null,null,null,null,null,null,{"$f":"_xlfn.CONCAT(AE43,AF43,AL43,AI43,AM43,AG43,AH43,AJ43,AK43,)","v":""}]
[null,null,null,null,null,null,null,null,null,null,null,null,null,null,null,null,null,null,null,null,null,null,null,null,null,null,null,null,null,null,null,null,null,null,null,null,null,null,null,null,null,null,"",null,null,null,null,null,null,{"$f":"_xlfn.CONCAT(AE44,AF44,AL44,AI44,AM44,AG44,AH44,AJ44,AK44,)","v":""}]
[null,null,null,null,null,null,null,null,null,null,null,null,null,null,null,null,null,null,null,null,null,null,null,null,null,null,null,null,null,null,null,null,null,null,null,null,null,null,null,null,null,null,"",null,null,null,null,null,null,{"$f":"_xlfn.CONCAT(AE45,AF45,AL45,AI45,AM45,AG45,AH45,AJ45,AK45,)","v":""}]
[null,null,null,null,null,null,null,null,null,null,null,null,null,null,null,null,null,null,null,null,null,null,null,null,null,null,null,null,null,null,null,null,null,null,null,null,null,null,null,null,null,null,"",null,null,null,null,null,null,{"$f":"_xlfn.CONCAT(AE46,AF46,AL46,AI46,AM46,AG46,AH46,AJ46,AK46,)","v":""}]
[null,null,null,null,null,null,null,null,null,null,null,null,null,null,null,null,null,null,null,null,null,null,null,null,null,null,null,null,null,null,null,null,null,null,null,null,null,null,null,null,null,null,"",null,null,null,null,null,null,{"$f":"_xlfn.CONCAT(AE47,AF47,AL47,AI47,AM47,AG47,AH47,AJ47,AK47,)","v":""}]
[null,null,null,null,null,null,null,null,null,null,null,null,null,null,null,null,null,null,null,null,null,null,null,null,null,null,null,null,null,null,null,null,null,null,null,null,null,null,null,null,null,null,"",null,null,null,null,null,null,{"$f":"_xlfn.CONCAT(AE48,AF48,AL48,AI48,AM48,AG48,AH48,AJ48,AK48,)","v":""}]
[null,null,null,null,null,null,null,null,null,null,null,null,null,null,null,null,null,null,null,null,null,null,null,null,null,null,null,null,null,null,null,null,null,null,null,null,null,null,null,null,null,null,"",null,null,null,null,null,null,{"$f":"_xlfn.CONCAT(AE49,AF49,AL49,AI49,AM49,AG49,AH49,AJ49,AK49,)","v":""}]
[null,null,null,null,null,null,null,null,null,null,null,null,null,null,null,null,null,null,null,null,null,null,null,null,null,null,null,null,null,null,null,null,null,null,null,null,null,null,null,null,null,null,"",null,null,null,null,null,null,{"$f":"_xlfn.CONCAT(AE50,AF50,AL50,AI50,AM50,AG50,AH50,AJ50,AK50,)","v":""}]
[null,null,null,null,null,null,null,null,null,null,null,null,null,null,null,null,null,null,null,null,null,null,null,null,null,null,null,null,null,null,null,null,null,null,null,null,null,null,null,null,null,null,"",null,null,null,null,null,null,{"$f":"_xlfn.CONCAT(AE51,AF51,AL51,AI51,AM51,AG51,AH51,AJ51,AK51,)","v":""}]
[null,null,null,null,null,null,null,null,null,null,null,null,null,null,null,null,null,null,null,null,null,null,null,null,null,null,null,null,null,null,null,null,null,null,null,null,null,null,null,null,null,null,"",null,null,null,null,null,null,{"$f":"_xlfn.CONCAT(AE52,AF52,AL52,AI52,AM52,AG52,AH52,AJ52,AK52,)","v":""}]
[null,null,null,null,null,null,null,null,null,null,null,null,null,null,null,null,null,null,null,null,null,null,null,null,null,null,null,null,null,null,null,null,null,null,null,null,null,null,null,null,null,null,"",null,null,null,null,null,null,{"$f":"_xlfn.CONCAT(AE53,AF53,AL53,AI53,AM53,AG53,AH53,AJ53,AK53,)","v":""}]
[null,null,null,null,null,null,null,null,null,null,null,null,null,null,null,null,null,null,null,null,null,null,null,null,null,null,null,null,null,null,null,null,null,null,null,null,null,null,null,null,null,null,"",null,null,null,null,null,null,{"$f":"_xlfn.CONCAT(AE54,AF54,AL54,AI54,AM54,AG54,AH54,AJ54,AK54,)","v":""}]
[null,null,null,null,null,null,null,null,null,null,null,null,null,null,null,null,null,null,null,null,null,null,null,null,null,null,null,null,null,null,null,null,null,null,null,null,null,null,null,null,null,null,"",null,null,null,null,null,null,{"$f":"_xlfn.CONCAT(AE55,AF55,AL55,AI55,AM55,AG55,AH55,AJ55,AK55,)","v":""}]
[null,null,null,null,null,null,null,null,null,null,null,null,null,null,null,null,null,null,null,null,null,null,null,null,null,null,null,null,null,null,null,null,null,null,null,null,null,null,null,null,null,null,"",null,null,null,null,null,null,{"$f":"_xlfn.CONCAT(AE56,AF56,AL56,AI56,AM56,AG56,AH56,AJ56,AK56,)","v":""}]
[null,null,null,null,null,null,null,null,null,null,null,null,null,null,null,null,null,null,null,null,null,null,null,null,null,null,null,null,null,null,null,null,null,null,null,null,null,null,null,null,null,null,"",null,null,null,null,null,null,{"$f":"_xlfn.CONCAT(AE57,AF57,AL57,AI57,AM57,AG57,AH57,AJ57,AK57,)","v":""}]
[null,null,null,null,null,null,null,null,null,null,null,null,null,null,null,null,null,null,null,null,null,null,null,null,null,null,null,null,null,null,null,null,null,null,null,null,null,null,null,null,null,null,"",null,null,null,null,null,null,{"$f":"_xlfn.CONCAT(AE58,AF58,AL58,AI58,AM58,AG58,AH58,AJ58,AK58,)","v":""}]
[null,null,null,null,null,null,null,null,null,null,null,null,null,null,null,null,null,null,null,null,null,null,null,null,null,null,null,null,null,null,null,null,null,null,null,null,null,null,null,null,null,null,"",null,null,null,null,null,null,{"$f":"_xlfn.CONCAT(AE59,AF59,AL59,AI59,AM59,AG59,AH59,AJ59,AK59,)","v":""}]
[null,null,null,null,null,null,null,null,null,null,null,null,null,null,null,null,null,null,null,null,null,null,null,null,null,null,null,null,null,null,null,null,null,null,null,null,null,null,null,null,null,null,"",null,null,null,null,null,null,{"$f":"_xlfn.CONCAT(AE60,AF60,AL60,AI60,AM60,AG60,AH60,AJ60,AK60,)","v":""}]
[null,null,null,null,null,null,null,null,null,null,null,null,null,null,null,null,null,null,null,null,null,null,null,null,null,null,null,null,null,null,null,null,null,null,null,null,null,null,null,null,null,null,"",null,null,null,null,null,null,{"$f":"_xlfn.CONCAT(AE61,AF61,AL61,AI61,AM61,AG61,AH61,AJ61,AK61,)","v":""}]
[null,null,null,null,null,null,null,null,null,null,null,null,null,null,null,null,null,null,null,null,null,null,null,null,null,null,null,null,null,null,null,null,null,null,null,null,null,null,null,null,null,null,"",null,null,null,null,null,null,{"$f":"_xlfn.CONCAT(AE62,AF62,AL62,AI62,AM62,AG62,AH62,AJ62,AK62,)","v":""}]
[null,null,null,null,null,null,null,null,null,null,null,null,null,null,null,null,null,null,null,null,null,null,null,null,null,null,null,null,null,null,null,null,null,null,null,null,null,null,null,null,null,null,"",null,null,null,null,null,null,{"$f":"_xlfn.CONCAT(AE63,AF63,AL63,AI63,AM63,AG63,AH63,AJ63,AK63,)","v":""}]
[null,null,null,null,null,null,null,null,null,null,null,null,null,null,null,null,null,null,null,null,null,null,null,null,null,null,null,null,null,null,null,null,null,null,null,null,null,null,null,null,null,null,"",null,null,null,null,null,null,{"$f":"_xlfn.CONCAT(AE64,AF64,AL64,AI64,AM64,AG64,AH64,AJ64,AK64,)","v":""}]
[null,null,null,null,null,null,null,null,null,null,null,null,null,null,null,null,null,null,null,null,null,null,null,null,null,null,null,null,null,null,null,null,null,null,null,null,null,null,null,null,null,null,"",null,null,null,null,null,null,{"$f":"_xlfn.CONCAT(AE65,AF65,AL65,AI65,AM65,AG65,AH65,AJ65,AK65,)","v":""}]
[null,null,null,null,null,null,null,null,null,null,null,null,null,null,null,null,null,null,null,null,null,null,null,null,null,null,null,null,null,null,null,null,null,null,null,null,null,null,null,null,null,null,"",null,null,null,null,null,null,{"$f":"_xlfn.CONCAT(AE66,AF66,AL66,AI66,AM66,AG66,AH66,AJ66,AK66,)","v":""}]
[null,null,null,null,null,null,null,null,null,null,null,null,null,null,null,null,null,null,null,null,null,null,null,null,null,null,null,null,null,null,null,null,null,null,null,null,null,null,null,null,null,null,"",null,null,null,null,null,null,{"$f":"_xlfn.CONCAT(AE67,AF67,AL67,AI67,AM67,AG67,AH67,AJ67,AK67,)","v":""}]
[null,null,null,null,null,null,null,null,null,null,null,null,null,null,null,null,null,null,null,null,null,null,null,null,null,null,null,null,null,null,null,null,null,null,null,null,null,null,null,null,null,null,"",null,null,null,null,null,null,{"$f":"_xlfn.CONCAT(AE68,AF68,AL68,AI68,AM68,AG68,AH68,AJ68,AK68,)","v":""}]
[null,null,null,null,null,null,null,null,null,null,null,null,null,null,null,null,null,null,null,null,null,null,null,null,null,null,null,null,null,null,null,null,null,null,null,null,null,null,null,null,null,null,"",null,null,null,null,null,null,{"$f":"_xlfn.CONCAT(AE69,AF69,AL69,AI69,AM69,AG69,AH69,AJ69,AK69,)","v":""}]
[null,null,null,null,null,null,null,null,null,null,null,null,null,null,null,null,null,null,null,null,null,null,null,null,null,null,null,null,null,null,null,null,null,null,null,null,null,null,null,null,null,null,"",null,null,null,null,null,null,{"$f":"_xlfn.CONCAT(AE70,AF70,AL70,AI70,AM70,AG70,AH70,AJ70,AK70,)","v":""}]
[null,null,null,null,null,null,null,null,null,null,null,null,null,null,null,null,null,null,null,null,null,null,null,null,null,null,null,null,null,null,null,null,null,null,null,null,null,null,null,null,null,null,"",null,null,null,null,null,null,{"$f":"_xlfn.CONCAT(AE71,AF71,AL71,AI71,AM71,AG71,AH71,AJ71,AK71,)","v":""}]
[null,null,null,null,null,null,null,null,null,null,null,null,null,null,null,null,null,null,null,null,null,null,null,null,null,null,null,null,null,null,null,null,null,null,null,null,null,null,null,null,null,null,"",null,null,null,null,null,null,{"$f":"_xlfn.CONCAT(AE72,AF72,AL72,AI72,AM72,AG72,AH72,AJ72,AK72,)","v":""}]
[null,null,null,null,null,null,null,null,null,null,null,null,null,null,null,null,null,null,null,null,null,null,null,null,null,null,null,null,null,null,null,null,null,null,null,null,null,null,null,null,null,null,"",null,null,null,null,null,null,{"$f":"_xlfn.CONCAT(AE73,AF73,AL73,AI73,AM73,AG73,AH73,AJ73,AK73,)","v":""}]
[null,null,null,null,null,null,null,null,null,null,null,null,null,null,null,null,null,null,null,null,null,null,null,null,null,null,null,null,null,null,null,null,null,null,null,null,null,null,null,null,null,null,"",null,null,null,null,null,null,{"$f":"_xlfn.CONCAT(AE74,AF74,AL74,AI74,AM74,AG74,AH74,AJ74,AK74,)","v":""}]
[null,null,null,null,null,null,null,null,null,null,null,null,null,null,null,null,null,null,null,null,null,null,null,null,null,null,null,null,null,null,null,null,null,null,null,null,null,null,null,null,null,null,"",null,null,null,null,null,null,{"$f":"_xlfn.CONCAT(AE75,AF75,AL75,AI75,AM75,AG75,AH75,AJ75,AK75,)","v":""}]
[null,null,null,null,null,null,null,null,null,null,null,null,null,null,null,null,null,null,null,null,null,null,null,null,null,null,null,null,null,null,null,null,null,null,null,null,null,null,null,null,null,null,"",null,null,null,null,null,null,{"$f":"_xlfn.CONCAT(AE76,AF76,AL76,AI76,AM76,AG76,AH76,AJ76,AK76,)","v":""}]
[null,null,null,null,null,null,null,null,null,null,null,null,null,null,null,null,null,null,null,null,null,null,null,null,null,null,null,null,null,null,null,null,null,null,null,null,null,null,null,null,null,null,"",null,null,null,null,null,null,{"$f":"_xlfn.CONCAT(AE77,AF77,AL77,AI77,AM77,AG77,AH77,AJ77,AK77,)","v":""}]
[null,null,null,null,null,null,null,null,null,null,null,null,null,null,null,null,null,null,null,null,null,null,null,null,null,null,null,null,null,null,null,null,null,null,null,null,null,null,null,null,null,null,"",null,null,null,null,null,null,{"$f":"_xlfn.CONCAT(AE78,AF78,AL78,AI78,AM78,AG78,AH78,AJ78,AK78,)","v":""}]
[null,null,null,null,null,null,null,null,null,null,null,null,null,null,null,null,null,null,null,null,null,null,null,null,null,null,null,null,null,null,null,null,null,null,null,null,null,null,null,null,null,null,"",null,null,null,null,null,null,{"$f":"_xlfn.CONCAT(AE79,AF79,AL79,AI79,AM79,AG79,AH79,AJ79,AK79,)","v":""}]
[null,null,null,null,null,null,null,null,null,null,null,null,null,null,null,null,null,null,null,null,null,null,null,null,null,null,null,null,null,null,null,null,null,null,null,null,null,null,null,null,null,null,"",null,null,null,null,null,null,{"$f":"_xlfn.CONCAT(AE80,AF80,AL80,AI80,AM80,AG80,AH80,AJ80,AK80,)","v":""}]
[null,null,null,null,null,null,null,null,null,null,null,null,null,null,null,null,null,null,null,null,null,null,null,null,null,null,null,null,null,null,null,null,null,null,null,null,null,null,null,null,null,null,"",null,null,null,null,null,null,{"$f":"_xlfn.CONCAT(AE81,AF81,AL81,AI81,AM81,AG81,AH81,AJ81,AK81,)","v":""}]
[null,null,null,null,null,null,null,null,null,null,null,null,null,null,null,null,null,null,null,null,null,null,null,null,null,null,null,null,null,null,null,null,null,null,null,null,null,null,null,null,null,null,"",null,null,null,null,null,null,{"$f":"_xlfn.CONCAT(AE82,AF82,AL82,AI82,AM82,AG82,AH82,AJ82,AK82,)","v":""}]
[null,null,null,null,null,null,null,null,null,null,null,null,null,null,null,null,null,null,null,null,null,null,null,null,null,null,null,null,null,null,null,null,null,null,null,null,null,null,null,null,null,null,"",null,null,null,null,null,null,{"$f":"_xlfn.CONCAT(AE83,AF83,AL83,AI83,AM83,AG83,AH83,AJ83,AK83,)","v":""}]
[null,null,null,null,null,null,null,null,null,null,null,null,null,null,null,null,null,null,null,null,null,null,null,null,null,null,null,null,null,null,null,null,null,null,null,null,null,null,null,null,null,null,"",null,null,null,null,null,null,{"$f":"_xlfn.CONCAT(AE84,AF84,AL84,AI84,AM84,AG84,AH84,AJ84,AK84,)","v":""}]
[null,null,null,null,null,null,null,null,null,null,null,null,null,null,null,null,null,null,null,null,null,null,null,null,null,null,null,null,null,null,null,null,null,null,null,null,null,null,null,null,null,null,"",null,null,null,null,null,null,{"$f":"_xlfn.CONCAT(AE85,AF85,AL85,AI85,AM85,AG85,AH85,AJ85,AK85,)","v":""}]

{"sheet":"Daten für Excel Befüllung","index":1,"n_rows":80,"n_cols":27,"rows_kept":80,"cut":false,"hidden":false,"merged":[[15,3,15,5],[3,12,3,14],[34,4,34,6],[34,8,34,9],[33,11,33,13],[42,8,42,9],[1,11,1,14],[15,11,15,14],[15,7,15,8],[15,16,15,22],[30,11,30,14]]}
[]
["Zylinderlänge A Aussen","Zylinderlängen B Innen"]
[null,null,null,null,null,null,null,null,null,null,null,null,null,null,null,null,null,null,null,null,null,null,null,null,null,null,"Zylindermodell"]
[null,null,null,null,"Energiesparschalter Ausführungen ",null,null,null,"Digitalzylinder  Ausführung",null,null,null,"Digitalzylinder Zusatzoption"]
[30,0,null,null,null,null,null,null,null,null,null,null,null,null,null,null,null,null,null,null,null,null,null,null,null,null,"E1"]
[35,10,null,null,"SCH 102252380",null,null,null,null,null,null,null,"R",null,null,null,null,null,null,null,null,null,null,null,null,null,"E2"]
[40,20,null,null,"Nein",null,null,null," A ",null,null,null,"G",null,null,null,null,null,null,null,null,null,null,null,null,null,"E3"]
[45,30,null,null,"Salto Offline",null,null,null,"-",null,null,null,"V",null,null,null,null,null,null,null,null,null,null,null,null,null,"E7"]
[50,35,null,null,"Salto Online",null,null,null,null,null,null,null,"-",null,null,null,null,null,null,null,null,null,null,null,null,null,"E8"]
[55,40,null,null,"Vorbereitet",null,null,null,null,null,null,null,null,null,null,null,null,null,null,null,null,null,null,null,null,null,"E9"]
[60,45,null,null,null,null,null,null,null,null,null,null,null,null,null,null,null,null,null,null,null,null,null,null,null,null,"CL119M28"]
[65,50,null,null,null,null,null,null,null,null,null,null,null,null,null,null,null,null,null,null,null,null,null,null,null,null,"CL119W28"]
[70,55,null,null,null,null,null,null,null,null,null,null,null,null,null,null,null,null,null,null,null,null,null,null,null,null,"CL119M40"]
[75,60,null,null,null,null,null,null,null,null,null,null,null,null,null,null,null,null,null,null,null,null,null,null,null,null,"CL119W40"]
[80,65,null,null,null,null,null,null,null,null,null,null,null,null,null,null,null,null,null,null,null,null,null,null,null,null,"P4P60150CPB1"]
[85,70,null,"Unterlagsplatten Ausführung",null,null,null,"Tür Reed Kontakt",null,null,null,"Schloss Ausführung",null,null,null,null,"Benötigte Schloss Ausführung",null,null,null,null,null,null,null,null,null,"P4R60150CPB1"]
[90,75,null,null,null,null,null,null,null,null,null,null,null,null,null,null,null,null,null,null,null,null,null,null,null,null,"P3P48825CPB1"]
[95,80,null,"Ja",null,null,null,"Für Holztüren schmalen Beschlag",null,null,null,"Bleibt",null,null,null,null,"---",null,null,null,null,null,null,null,null,null,"P3P48825CPB1"]
[100,85,null,"Nein",null,null,null,"Für Holztüren breiten Beschlag",null,null,null,"Tausch \"Wechselfunktion\"",null,null,null,null,"Tausch \"Wechselfunktion\"",null,null,null,null,null,null,null,null,null,"P3P48860CPB1"]
[105,90,null,null,null,null,null,"Für Stahltüren schmalen Beschlag",null,null,null,"FB",null,null,null,null,"FB",null,null,null,null,null,null,null,null,null,"P3P48890CPB0"]
[110,95,null,null,null,null,null,"Für Stahltüren breiten Beschlag",null,null,null,"SVP",null,null,null,null,"SVP",null,null,null,null,null,null,null,null,null,"P3P48825CPB0"]
[115,100,null,null,null,"Türstärke",null,null,null,null,null,"MFV o. Panik",null,null,null,null,"MFV o. Panik",null,null,null,null,null,null,null,null,null,"P3P48825CPB0"]
[120,105,null,null,null,null,null,null,null,null,null,"MFV m. Panik",null,null,null,null,"MFV m. Panik",null,null,null,null,null,null,null,null,null,"P3P48860CPB0"]
[125,110,null,"Modellvarianten",null,3,null,"Notöffnung",null,null,null,"Tausch FH 9mm",null,null,null,null,"Wendeschloss mit Rosettenlöcher",null,null,null,null,null,null,null,null,null,"P3P48890CPB0"]
[130,115,null,null,null,4,null,null,null,null,null,"Wendeschloss",null,null,null,null,"Panikschloss ohne SVP"]
[135,120,null,0,null,6,null,"PO",null,null,null,null,null,null,null,null,null,null,null,null,null,null,null,null,null,null,"E1"]
[140,125,null,2,null,7,null,"P1",null,null,null,null,null,null,null,null,null,null,null,null,null,null,null,null,null,null,"E2"]
[145,130,null,3,null,9,null,"P6",null,null,null,null,null,null,null,null,null,null,null,null,null,null,null,null,null,null,"E3"]
[150,135,null,4,null,1,null,null,null,null,null,null,null,null,null,null,null,null,null,null,null,null,null,null,null,null,"E9"]
[null,140,null,6,null,null,null,null,null,null,null,null,null,null,null,null,null,null,null,null,null,null,null,null,null,null,"CL119M28"]
[null,145,null,7,null,"H",null,null,null,null,null,null,null,null,null,null,null,null,null,null,null,null,null,null,null,null,"CL119M40"]
[null,150,null,"R ",null,"D",null,null,null,null,null,null,null,null,null,null,null,null,null,null,null,null,null,null,null,null,"CL119W28"]
[null,null,null,"RO",null,null,null,null,null,null,null,null,null,null,null,null,null,null,null,null,null,null,null,"Spernasen Ausführung",null,null,"CL119W40"]
[null,null,null,"SH",null,null,null,null,null,null,null,"Salto Bauform:\n(z.b.Beschlag)",null,null,"Technologie Ausführung"]
["Beschlag Entfernung","Beschlag PZ Masse",null,"0GD","Bei Schloss Tausch Be-Massung",null,null,null,"Schloss Ausgleichshülsen",null,null,null,null,null,null,null,null,null,null,null,null,null,null,"D"]
[null,null,null,"4GD",null,null,null,null,null,null,null,"ONE DIN Beschlag \"SH\" \"RO\" EM750O",null,null,"EM750","(E;F;H;WENN(G=\"\";\"\";TEXT(G;\"00\"));L;M;N;Q;R;)",null,null,null,null,null,null,null,"H"]
["ohne",72,null,null,"235 x 20 mm 65/72",null,null,null,"8mm --> 8,5 mm",null,null,null,null,null,null,null,null,null,null,null,null,null,null,"G"]
["72mm",88,null,null,null,null,null,null,null,null,null,null,null,null,null,null,null,null,null,null,null,null,null,"Z"]
["88mm",92,null,null,"235 x 20 mm 80/72",null,null,null,"8mm --> 9 mm"]
["92mm",0,null,"C1","235 x 20 mm 80/72",null,null,null,"8mm --> 10 mm"]
[null,"GD",null,0,"235 x 24 mm 55/72",null,null,null,"8,5mm --> 9 mm"]
[null,null,null,"01","235 x 24 mm 65/72",null,null,null,"8,5mm --> 10 mm",null,null,"ONE  Beschlag \"EM75\"",null,null,"EM75","(E;H;F;WENN(G=\"\";\"\";TEXT(G;\"00\"));L;M;N;Q;R;) "]
[null,null,null,"02","235 x 24 mm 80/72",null,null,null,null,null,null,"ONE Halbbeschlag \"EM750H / D\"",null,null,"EM75","(E;H;F;WENN(G=\"\";\"\";TEXT(G;\"00\"));L;M;N;Q;R;)"]
[null,null,null,"03","250 x 18 mm 50/88"]
[null,null,null,"04","250 x 18 mm 60/88",null,null,null,null,null,null,"ONE Komplementärbeschlag Schmal \"E07\"",null,null,"E07","(E;WENN(H=\"\";\"\";TEXT(H;\"00\"));F;WENN(G=\"\";\"\";TEXT(G;\"00\"));L;M;N;Q;R;)"]
["Drückernuss","Farbe Beschlag",null,"09","250 x 18 mm 70/88",null,null,null,null,null,null,"NEO Zylinder",null,null,"NM"]
[null,null,null,null,"250 x 20 mm 50/88",null,null,null,null,null,null,"GEO Zylinder ",null,null,"G9"]
[8,"IM",null,null,null,null,null,null,null,null,null,"Original Breitschildbeschlag mit Keypad  \"E96\"",null,null,"E965","(E;H;F;WENN(G=\"\";\"\";TEXT(G;\"00\"));L;M;N;Q;R;T;)"]
[9,null,null,null,null,null,null,null,null,null,null,"Original Dopp. Beschlag 8mm \"E9CD\"",null,null,"E9CD","(E;H;F;WENN(G=\"\";\"\";TEXT(G;\"00\"));L;M;N;Q;R;)"]
[null,"DB",null,null,"250x 20 mm 60/88",null,null,null,null,null,null,"Original Dopp. Beschlag 9mm  \"F9CD\"",null,null,"F9CD","(E;H;F;WENN(G=\"\";\"\";TEXT(G;\"00\"));L;M;N;Q;R;)"]
[null,"IP",null,"Glastür Varianten","250 x 20 mm 70/88",null,null,null,null,null,null,"Original+ DIN Beschlag \"SH\" \"RO\"  EM450",null,null,"EM450","(E;H;F;WENN(G=\"\";\"\";TEXT(G;\"00\"));L;M;N;Q;R;) "]
[null,"NE",null,"OLH","245 x 24 mm 30/92"]
[null,"PM",null,"ORH"]
[null,"PP",null,"OLR"]
[null,"BC",null,"ORR",null,null,null,null,null,null,null,null,null,null,null,null,null,null,null,null,null,null,null,null,"Lesekopf Verlängerung"]
[null,"DB",null,null,null,null,null,null,null,null,null,"Original+ Beschlag  \"EM45\"",null,null,"EM45"]
[null,null,null,null,"245 x 24 mm 35/92",null,null,null,null,null,null,"Original Breitschildbeschlag mit Keypad  \"E96\"",null,null,"EB65","(E;H;F;WENN(G=\"\";\"\";TEXT(G;\"00\"));L;M;N;Q;R;T;)",null,null,null,null,null,null,null,null,1]
[null,null,null,null,"245 x 24 mm 40/92",null,null,null,null,null,null,"Original+ Breitschildbeschlag   EM65",null,null,"EM65","(E;H;F;WENN(G=\"\";\"\";TEXT(G;\"00\"));L;M;N;Q;R;S;T;",null,null,null,null,null,null,null,null,2]
["Beschlag Wetterschutz",null,null,null,"245 x 24 mm 45/92",null,null,null,null,null,null,"Original+ Glastürbeschlag  \"EM65#GD\"",null,null,"EM65","(E;H;F;WENN(G=\"\";\"\";TEXT(G;\"00\"));L;M;N;Q;R;S;)",null,null,null,null,null,null,null,null,3]
[]
["-",null,null,null,null,null,null,null,null,null,null,"Original+ Halbbeschlag  \"EM450H\"",null,null,"EM45","(E;H;F;WENN(G=\"\";\"\";TEXT(G;\"00\"));L;M;N;Q;R;)"]
[null,null,null,null,"270 x 20 mm 35/92",null,null,null,null,null,null,null,null,null,null,null,null,null,null,null,null,null,null,null,"Farbe Gehäuse"]
[5,null,null,null,"270 x 20 mm 40/92",null,null,null,null,null,null,"Original+ Komplementärbeschlag Schmal E04",null,null,"E04","(E;WENN(H=\"\";\"\";TEXT(H;\"00\"));F;WENN(G=\"\";\"\";TEXT(G;\"00\"));L;M;N;Q;R;)",null,null,null,null,null,null,null,null,"CSB"]
["E",null,null,null,"270 x 20 mm 45/92",null,null,null,null,null,null,"Original+ Komplementärbeschlag Breit \"E06\"",null,null,"E06","(E;WENN(H=\"\";\"\";TEXT(H;\"00\"));F;WENN(G=\"\";\"\";TEXT(G;\"00\"));L;M;N;Q;R;)",null,null,null,null,null,null,null,null,"CPB"]
[null,null,null,null,"270 x 24 mm 35/92",null,null,null,null,null,null,"MINI Beschlag Standard  \"EM150\"",null,null,"EM150","(E;H;F;WENN(G=\"\";\"\";TEXT(G;\"00\"));L;M;N;Q;R;)",null,null,null,null,null,null,null,null,"CSW"]
["N",null,null,null,"270 x 24 mm 40/92",null,null,null,null,null,null,"MINI Beschlag Metall Optik \"EM350\"",null,null,"EM350","(E;H;F;WENN(G=\"\";\"\";TEXT(G;\"00\"));L;M;N;Q;R;)",null,null,null,null,null,null,null,null,"CPW"]
["E5",null,null,null,"270 x 24 mm 45/92",null,null,null,null,null,null,"Wandleser Aufputz Gerade  \"WRDM\"",null,null,"WRDM0S4",null,null,null,null,null,null,null,null,null,"PPB"]
[null,null,null,null,"300 x 20 mm 50/88",null,null,null,null,null,null,"Wandleser Pin. Gerade  \"weiß\" WRDM0S4WV",null,null,"WRDM0S4WV",null,null,null,null,null,null,null,null,null,"PMB"]
[null,null,null,null,"300 x 20 mm 60/88",null,null,null,null,null,null,"Wandleser Pin Gerade  \"Schwarz\" WRDM0S4BV",null,null,"WRDM0S4BV",null,null,null,null,null,null,null,null,null,"PPW"]
[null,null,null,null,"300 x 20 mm 70/88",null,null,null,null,null,null,null,null,null,null,null,null,null,null,null,null,null,null,null,"PMW"]
[null,null,null,null,null,null,null,null,null,null,null,"Wandleser Profileser  \"WRDM0M\"",null,null,"WRDM0M4",null,null,null,null,null,null,null,null,null,"BCB"]
[null,null,null,null,"300 x 24 mm 30/92",null,null,null,null,null,null,"Wandleser Modular  \"B, W, S\" WRMM004#",null,null,"WRMM004",null,null,null,null,null,null,null,null,null,"NEB"]
[null,null,null,null,"300 x 24 mm 35/92",null,null,null,null,null,null,"Wandlesermodul Einbau  \"WRDMOP\"",null,null,"WRDMOP40",null,null,null,null,null,null,null,null,null,"NEW"]
[null,null,null,null,"300 x 24 mm 40/92",null,null,null,null,null,null,"Wandleser Glasfront  \"WRDM0G\"",null,null,"WRDMOG4"]
[null,null,null,null,"300 x 24 mm 45/92",null,null,null,null,null,null,"blueNet GATEWAY 3 \"Weiß\" GATEWAYW3CEU",null,null,"GATEWAYW3CEU"]
[null,null,null,null,"xxx --> Siehe Bemerkungsfeld",null,null,null,null,null,null,"blueNet GATEWAY 3  \"Schwarz\" GATEWAYB3CEU",null,null,"GATEWAYB3CEU",null,null,null,null,null,null,null,null,null,"Innenknauf-Form"]
[null,null,null,null,null,null,null,null,null,null,null,"blueNet node  \"Weiß\" RFNODE3W",null,null,"RFNODE3W",null,null,null,null,null,null,null,null,null,"S"]
[null,null,null,null,null,null,null,null,null,null,null,"blueNet  Node  \"Schwarz\"  RFNODE3B",null,null,"RFNODE3B",null,null,null,null,null,null,null,null,null,"R"]
[null,null,null,null,null,null,null,null,null,null,null,"blueNet  Repeater  \"Weiß\" REPEATER03WEU",null,null,"REPEATER03WEU",null,null,null,null,null,null,null,null,null,"N "]
[null,null,null,null,null,null,null,null,null,null,null,"blueNet Repeater  \"Schwarz\" REPEATER03BEU",null,null,"REPEATER03BEU"]